bitfinex/quotes_SOLUSD_20240621
["timestamp","ask_amount","ask_price","bid_price","bid_amount"]
[1718931705377,45.51,133.26,133.16,6.069]
[1718931706987,45.51,133.26,133.17,20.0]
[1718931708686,1.74343683,133.27,133.17,20.0]
[1718931709278,302.11669666,133.29,133.17,20.0]
[1718931709474,262.93790695,133.29,133.18,22.3115]
[1718931709781,255.1,133.29,133.2,6.069]
[1718931709970,382.5,133.33,133.21,20.0]
[1718931710589,385.62502784,133.33,133.21,20.0]
[1718931710800,391.63799746,133.33,133.21,20.0]
[1718931711001,0.17,133.32,133.21,20.0]
[1718931711296,45.51,133.32,133.21,20.0]
[1718931714484,0.51,133.32,133.21,20.0]
[1718931715384,1.74343683,133.31,133.21,20.0]
[1718931715583,0.51,133.3,133.21,20.0]
[1718931719501,0.51,133.3,133.2,6.069]
[1718931719502,45.51,133.3,133.2,6.069]
[1718931721506,17.02313683,133.29,133.2,6.069]
[1718931721700,45.51,133.28,133.2,6.069]
[1718931721899,45.51,133.28,133.21,20.0]
[1718931722087,0.51,133.28,133.21,20.0]
[1718931722897,0.51,133.28,133.2,6.069]
[1718931723500,28.48,133.26,133.2,6.069]
[1718931723682,0.51,133.25,133.2,6.069]
[1718931725309,1.74343683,133.29,133.21,16.2425]
[1718931725492,1.74343683,133.29,133.21,36.2425]
[1718931725686,1.74343683,133.29,133.22,22.3115]
[1718931725947,1.74343683,133.29,133.23,20.0]
[1718931727986,0.17,133.28,133.23,20.0]
[1718931728186,0.51,133.28,133.23,20.0]
[1718931730094,0.51,133.28,133.22,22.3115]
[1718931732086,0.51,133.28,133.18,22.3115]
[1718931732282,0.51,133.28,133.19,20.0]
[1718931733304,37.06395988,133.27,133.15,6.069]
[1718931733507,30.0,133.23,133.15,6.069]
[1718931733688,0.17,133.22,133.15,6.069]
[1718931733893,45.51,133.22,133.15,6.069]
[1718931734302,49.37395988,133.22,133.15,6.069]
[1718931734483,30.0,133.2,133.05,22.3115]
[1718931734688,45.51,133.19,133.06,20.0]
[1718931735501,45.51,133.19,133.05,22.3115]
[1718931735811,30.0,133.18,133.05,22.3115]
[1718931736019,45.51,133.17,133.05,22.3115]
[1718931736200,0.51,133.17,133.05,22.3115]
[1718931736716,75.51,133.17,133.05,44.8915]
[1718931736908,30.51,133.17,133.06,65.0]
[1718931737094,30.51,133.17,133.06,87.58]
[1718931737411,30.51,133.17,133.07,6.069]
[1718931737618,30.51,133.17,133.08,20.0]
[1718931741103,48.88752908,133.16,133.08,20.0]
[1718931741305,0.51,133.15,133.08,20.0]
[1718931741510,30.51,133.15,133.08,20.0]
[1718931741895,45.0,133.14,133.08,20.0]
[1718931742100,0.51,133.13,133.08,20.0]
[1718931742498,0.17,133.13,133.08,20.0]
[1718931742705,0.17,133.14,133.08,20.0]
[1718931742898,0.51,133.14,133.08,20.0]
[1718931750207,6.9525,133.14,133.08,20.0]
[1718931750513,6.9525,133.14,133.06,20.0]
[1718931751200,30.0,133.13,133.06,20.0]
[1718931751406,0.51,133.12,133.06,20.0]
[1718931751942,30.0,133.13,133.06,20.0]
[1718931752104,21.7222,133.18,133.07,45.0]
[1718931752427,45.51,133.17,133.08,20.0]
[1718931753930,45.51,133.17,133.06,20.0]
[1718931755843,71.34486063,133.16,133.03,6.069]
[1718931756015,30.0,133.11,133.03,6.069]
[1718931756340,45.51,133.1,133.03,6.069]
[1718931757406,45.51,133.1,133.04,20.0]
[1718931759421,30.0,133.11,133.04,20.0]
[1718931760810,0.51,133.1,133.04,20.0]
[1718931761016,30.0,133.11,133.04,20.0]
[1718931762019,27.63298701,133.16,133.04,20.0]
[1718931762411,41.18951965,133.16,133.04,20.0]
[1718931762614,45.51,133.15,133.04,20.0]
[1718931765032,27.63298701,133.16,133.04,20.0]
[1718931765228,15.2797,133.16,133.06,16.2425]
[1718931765537,6.4425,133.18,133.07,20.0]
[1718931766624,45.51,133.17,133.07,20.0]
[1718931766820,0.17,133.17,133.07,20.0]
[1718931767132,0.17,133.17,133.08,6.069]
[1718931767322,0.17,133.17,133.09,20.0]
[1718931768241,0.51,133.17,133.09,20.0]
[1718931768817,30.41545276,133.19,133.09,20.0]
[1718931768818,13.55264344,133.19,133.1,61.2425]
[1718931769047,13.55264344,133.2,133.11,20.0]
[1718931769549,19.99514344,133.22,133.11,20.0]
[1718931769756,19.99514344,133.22,133.12,4.26200828]
[1718931769957,13.55264344,133.22,133.12,6.069]
[1718931770243,13.55264344,133.23,133.14,16.2425]
[1718931770442,13.55264344,133.25,133.16,6.069]
[1718931770630,255.1,133.26,133.17,20.0]
[1718931770833,6.02542196,133.27,133.17,20.0]
[1718931771023,13.54380597,133.27,133.18,45.0]
[1718931771340,28.82350597,133.28,133.19,20.0]
[1718931771638,57.29350597,133.28,133.19,20.0]
[1718931771832,13.54457221,133.27,133.17,20.0]
[1718931772829,13.54457221,133.27,133.18,45.0]
[1718931773034,21.17327465,133.28,133.19,20.0]
[1718931773237,13.54457221,133.28,133.2,16.2425]
[1718931773544,28.47,133.29,133.21,20.0]
[1718931773754,42.01457221,133.29,133.21,20.0]
[1718931774040,13.54457221,133.28,133.21,20.0]
[1718931774351,0.17,133.27,133.21,20.0]
[1718931774522,28.47,133.29,133.21,20.0]
[1718931774718,13.54156575,133.31,133.21,20.0]
[1718931774924,13.54152426,133.31,133.22,51.069]
[1718931775128,13.54152426,133.31,133.23,20.0]
[1718931775540,8.91589805,133.33,133.23,20.0]
[1718931775736,23.51165979,133.34,133.23,20.0]
[1718931775960,17.42905334,133.34,133.23,20.0]
[1718931776146,3.88752908,133.34,133.23,20.0]
[1718931777146,45.51,133.33,133.23,20.0]
[1718931777327,13.54152426,133.32,133.23,20.0]
[1718931777530,0.51,133.31,133.23,20.0]
[1718931780455,13.53924988,133.34,133.24,45.0]
[1718931780752,47.86457572,133.35,133.25,20.0]
[1718931780933,51.7521048,133.35,133.23,20.0]
[1718931781123,13.53987598,133.34,133.23,20.0]
[1718931781855,45.51,133.33,133.23,20.0]
[1718931787040,0.51,133.33,133.23,20.0]
[1718931788047,36.31235103,133.36,133.25,6.069]
[1718931788229,28.47,133.36,133.26,65.0]
[1718931788425,264.01589805,133.37,133.28,6.069]
[1718931788426,255.1,133.37,133.28,6.069]
[1718931788731,0.8388819,133.39,133.29,65.0]
[1718931789053,0.8388819,133.39,133.3,6.239]
[1718931789238,0.8388819,133.39,133.32,22.58]
[1718931789443,0.8388819,133.39,133.34,6.069]
[1718931789748,0.8388819,133.39,133.36,16.2425]
[1718931789950,255.1,133.47,133.37,20.0]
[1718931790132,382.5,133.51,133.38,6.069]
[1718931790336,382.5,133.51,133.39,66.65365562]
[1718931790670,255.9388819,133.52,133.41,16.2425]
[1718931790846,255.9388819,133.52,133.42,20.0]
[1718931791236,255.9388819,133.52,133.43,6.069]
[1718931791437,0.8388819,133.52,133.44,20.0]
[1718931793367,0.8388819,133.52,133.45,45.0]
[1718931793544,0.8388819,133.52,133.46,20.0]
[1718931794574,45.1,133.37,133.04,13.92405363]
[1718931794873,1.30804017,133.23,133.06,22.3115]
[1718931795034,1.30804017,133.23,133.07,22.58]
[1718931795562,0.17,133.22,133.07,22.58]
[1718931795865,30.0,133.21,133.06,22.3115]
[1718931796048,45.51,133.2,133.06,22.3115]
[1718931796951,30.0,133.18,133.06,22.3115]
[1718931797251,45.34,133.17,133.06,22.3115]
[1718931797444,0.17,133.16,133.06,22.3115]
[1718931797764,0.17,133.16,133.06,6.069]
[1718931797933,30.0,133.15,133.06,6.069]
[1718931798135,0.51,133.14,133.06,6.069]
[1718931798330,45.51,133.14,133.06,6.069]
[1718931798955,30.0,133.11,133.06,6.069]
[1718931799145,0.34,133.1,133.05,0.8388819]
[1718931799354,23.3334,133.11,133.05,0.8388819]
[1718931799555,6.6668,133.11,133.06,16.86716]
[1718931800086,1.30804017,133.23,133.06,16.86716]
[1718931800087,33.27,133.2,133.06,16.86716]
[1718931800450,33.27,133.21,133.05,0.8388819]
[1718931800653,33.27,133.16,133.05,0.8388819]
[1718931801014,1.73948067,133.2,133.05,0.8388819]
[1718931801144,0.51,133.19,133.05,0.8388819]
[1718931802838,1.73948067,133.18,133.05,0.8388819]
[1718931803056,0.51,133.17,133.05,0.8388819]
[1718931803466,0.34,133.17,133.05,0.8388819]
[1718931803846,0.34,133.17,133.05,20.8388819]
[1718931804447,0.34,133.17,133.06,20.0]
[1718931804764,1.73948067,133.18,133.06,20.0]
[1718931804765,1.73948067,133.18,133.07,45.0]
[1718931805064,33.27,133.21,133.08,20.0]
[1718931805841,33.27,133.21,133.05,0.8388819]
[1718931805842,38.85653947,133.21,133.05,0.8388819]
[1718931806047,45.51,133.2,133.05,0.8388819]
[1718931806969,38.85653947,133.21,133.06,0.17]
[1718931807171,35.00948067,133.21,133.06,0.51]
[1718931807349,33.27,133.21,133.06,0.51]
[1718931807870,33.27,133.21,133.06,0.34]
[1718931808064,33.27,133.21,133.05,0.8388819]
[1718931808252,38.86049563,133.21,133.05,0.8388819]
[1718931808652,35.01343683,133.21,133.06,0.17]
[1718931808846,45.51,133.2,133.06,0.51]
[1718931809055,45.51,133.2,133.05,0.8388819]
[1718931809473,45.51,133.2,133.06,0.17]
[1718931809664,45.51,133.2,133.06,0.51]
[1718931810067,45.51,133.2,133.05,0.8388819]
[1718931810872,45.17,133.2,133.06,0.51]
[1718931811972,261.15048965,133.23,133.06,0.51]
[1718931812157,255.1,133.23,133.06,0.51]
[1718931812364,255.1,133.23,133.07,6.069]
[1718931812559,255.1,133.23,133.08,65.51]
[1718931813280,255.1,133.23,133.08,88.09]
[1718931813580,258.9470588,133.28,133.1,22.58]
[1718931813881,255.1,133.28,133.11,65.34]
[1718931814052,255.1,133.28,133.12,0.17]
[1718931814776,45.17,133.27,133.12,0.17]
[1718931814985,45.17,133.27,133.11,65.34]
[1718931814986,33.44,133.26,133.11,65.34]
[1718931815283,45.34,133.25,133.12,0.17]
[1718931815456,0.17,133.24,133.11,65.0]
[1718931817477,30.0,133.13,133.11,20.0]
[1718931817659,30.0,133.13,133.1,20.0]
[1718931818895,0.51,133.12,133.07,6.069]
[1718931819062,30.0,133.1,133.07,6.069]
[1718931820277,13.3334,133.1,133.07,6.069]
[1718931820665,13.3334,133.1,133.08,20.0]
[1718931821279,33.27,133.21,133.09,45.0]
[1718931821484,33.27,133.21,133.08,20.0]
[1718931821485,33.27,133.21,133.1,20.0]
[1718931821780,33.27,133.21,133.08,20.0]
[1718931822580,45.51,133.2,133.08,20.0]
[1718931822776,45.51,133.2,133.09,45.0]
[1718931822985,45.51,133.2,133.1,20.0]
[1718931823286,45.51,133.2,133.08,20.0]
[1718931824259,45.51,133.2,133.09,45.0]
[1718931824464,45.51,133.2,133.1,20.0]
[1718931825069,45.51,133.2,133.08,20.0]
[1718931826786,30.0,133.11,133.08,20.0]
[1718931826963,30.0,133.11,133.07,6.069]
[1718931829768,30.0,133.11,133.05,0.8388819]
[1718931836488,30.0,133.11,133.06,0.17]
[1718931836687,30.0,133.11,133.06,0.51]
[1718931837385,30.0,133.11,133.05,0.8388819]
[1718931837696,30.0,133.11,133.06,0.17]
[1718931837897,30.0,133.11,133.06,0.51]
[1718931841806,21.68339394,133.21,133.06,0.51]
[1718931842082,45.51,133.2,133.06,0.51]
[1718931842294,0.51,133.2,133.06,0.51]
[1718931842602,294.46892565,133.22,133.06,0.51]
[1718931842603,21.68110342,133.21,133.06,0.51]
[1718931842989,255.1,133.22,133.06,0.51]
[1718931843197,21.67865444,133.21,133.06,0.51]
[1718931844208,25.54262478,133.21,133.06,0.51]
[1718931844891,255.1,133.22,133.08,67.76]
[1718931845089,3.86397034,133.23,133.1,22.58]
[1718931845281,3.86397034,133.23,133.12,22.58]
[1718931845480,6.4425,133.27,133.13,43.09]
[1718931845481,3.86397034,133.22,133.13,43.09]
[1718931845690,3.86397034,133.22,133.14,45.17]
[1718931845890,3.86397034,133.22,133.15,20.0]
[1718931846204,30.0,133.16,133.15,20.0]
[1718931846410,3.86397034,133.17,133.15,65.0]
[1718931846899,3.86397034,133.16,133.15,20.0]
[1718931847103,30.0,133.16,133.15,20.0]
[1718931847293,33.92178287,133.16,133.12,20.0]
[1718931847680,3.92178287,133.15,133.12,20.0]
[1718931848224,3.92178287,133.15,133.08,22.58]
[1718931848225,30.0,133.14,133.09,20.0]
[1718931848587,3.92178287,133.11,133.07,6.069]
[1718931848788,3.92178287,133.12,133.07,6.069]
[1718931849002,3.92178287,133.12,133.07,28.649]
[1718931849304,3.92178287,133.12,133.07,6.069]
[1718931849891,3.92178287,133.12,133.07,28.649]
[1718931850299,3.92178287,133.13,133.08,20.0]
[1718931850504,3.92178287,133.13,133.09,45.0]
[1718931850809,3.92178287,133.13,133.1,20.0]
[1718931851110,30.0,133.11,133.1,20.0]
[1718931851716,30.0,133.11,133.1,65.0]
[1718931852501,3.92178287,133.16,133.1,65.0]
[1718931852904,3.92178287,133.17,133.1,65.0]
[1718931853311,3.92178287,133.17,133.11,45.17]
[1718931853542,30.0,133.12,133.11,67.75]
[1718931853815,3.92178287,133.2,133.12,20.0]
[1718931854004,3.92178287,133.22,133.13,45.17]
[1718931854201,3.92178287,133.23,133.14,20.0]
[1718931854407,3.92178287,133.24,133.15,45.17]
[1718931854619,17.4669451,133.26,133.16,20.0]
[1718931854816,39.13920467,133.27,133.16,20.0]
[1718931855196,17.4669451,133.27,133.16,20.0]
[1718931856116,4.09178287,133.26,133.16,20.0]
[1718931856317,3.92178287,133.24,133.11,20.0]
[1718931856524,30.0,133.16,133.1,42.58]
[1718931856696,30.0,133.16,133.1,20.0]
[1718931856905,30.0,133.16,133.03,45.18]
[1718931857201,30.0,133.16,133.03,75.18]
[1718931857406,30.0,133.16,133.08,22.58]
[1718931858011,30.0,133.16,133.09,0.17]
[1718931858328,30.0,133.16,133.09,65.51]
[1718931858532,30.0,133.16,133.1,20.0]
[1718931859331,30.0,133.16,133.08,20.0]
[1718931859812,45.17,133.15,133.08,20.0]
[1718931860122,30.0,133.13,133.05,0.8388819]
[1718931861418,30.0,133.13,133.05,20.8388819]
[1718931861734,30.0,133.13,133.06,0.17]
[1718931862031,30.0,133.13,133.06,45.51]
[1718931862205,30.0,133.13,133.07,20.0]
[1718931862814,30.0,133.13,133.05,0.8388819]
[1718931863209,30.0,133.13,133.05,20.8388819]
[1718931863401,30.0,133.13,133.06,45.0]
[1718931863601,30.0,133.13,133.07,20.0]
[1718931864212,30.0,133.13,133.05,0.8388819]
[1718931864605,30.0,133.13,133.05,20.8388819]
[1718931865334,30.0,133.13,133.06,45.0]
[1718931865532,30.0,133.13,133.07,20.0]
[1718931867705,30.0,133.13,133.08,45.0]
[1718931867906,30.0,133.13,133.09,20.0]
[1718931870309,29.9716794,133.13,133.09,20.0]
[1718931872935,29.9716794,133.13,133.05,0.8388819]
[1718931873131,29.9716794,133.13,133.05,45.8388819]
[1718931873328,29.9716794,133.13,133.06,20.0]
[1718931874116,29.9716794,133.13,133.07,45.0]
[1718931874325,29.9716794,133.13,133.08,20.0]
[1718931877130,29.9716794,133.13,133.05,0.8388819]
[1718931878237,29.9716794,133.13,133.05,45.8388819]
[1718931878436,29.9716794,133.13,133.06,20.17]
[1718931880430,29.9716794,133.13,133.07,45.0]
[1718931880639,29.9716794,133.13,133.08,20.0]
[1718931882742,29.9716794,133.13,133.09,45.0]
[1718931882948,29.9716794,133.13,133.1,20.0]
[1718931885341,29.9716794,133.13,133.11,45.51]
[1718931885643,29.9716794,133.13,133.12,20.0]
[1718931885828,255.1,133.2,133.12,65.0]
[1718931886025,255.1,133.2,133.12,20.0]
[1718931886445,19.20689665,133.23,133.13,45.17]
[1718931886650,19.20689665,133.23,133.14,20.17]
[1718931886828,19.20689665,133.23,133.15,45.0]
[1718931887029,15.2797,133.23,133.15,45.0]
[1718931887343,15.2797,133.23,133.16,20.0]
[1718931887737,30.0,133.17,133.16,20.0]
[1718931887936,30.0,133.17,133.16,65.0]
[1718931888527,30.0,133.17,133.16,65.17]
[1718931888833,19.98655095,133.25,133.16,65.17]
[1718931889140,19.98655095,133.25,133.17,45.0]
[1718931889334,6.4425,133.25,133.18,20.0]
[1718931895043,15.4497,133.26,133.18,20.0]
[1718931895345,0.17,133.25,133.18,20.0]
[1718931895546,255.44,133.27,133.18,20.0]
[1718931895749,255.44,133.27,133.18,26.069]
[1718931897446,22.42249665,133.31,133.18,48.649]
[1718931897647,46.9653,133.31,133.19,68.09]
[1718931897852,31.6856,133.31,133.21,22.58]
[1718931898053,31.6856,133.31,133.22,0.17]
[1718931898346,3.2156,133.31,133.22,88.09]
[1718931898555,3.2156,133.31,133.22,87.92]
[1718931898739,3.2156,133.31,133.23,0.17]
[1718931899063,3.2156,133.31,133.23,0.34]
[1718931899261,3.2156,133.31,133.24,0.17]
[1718931899425,3.2156,133.31,133.24,0.34]
[1718931899629,3.2156,133.31,133.25,0.17]
[1718931899843,3.2156,133.31,133.25,0.34]
[1718931901340,3.2156,133.31,133.26,6.239]
[1718931901657,3.2156,133.31,133.27,65.0]
[1718931902243,3.2156,133.31,133.27,20.0]
[1718931904244,3.2156,133.31,133.28,45.0]
[1718931904451,3.2156,133.31,133.29,20.0]
[1718931906134,3.2156,133.31,133.3,67.75]
[1718931906342,3.2156,133.31,133.3,65.51]
[1718931907340,3.2156,133.31,133.3,88.09]
[1718931907946,0.2698,133.34,133.3,88.09]
[1718931908145,0.2698,133.34,133.31,20.34]
[1718931908369,0.2698,133.34,133.32,45.17]
[1718931908655,0.2698,133.34,133.33,20.0]
[1718931909948,0.2698,133.34,133.28,42.58]
[1718931910257,0.2698,133.34,133.29,68.09]
[1718931910457,0.2698,133.34,133.3,20.0]
[1718931910669,0.2698,133.34,133.31,67.92]
[1718931910834,0.2698,133.34,133.32,20.0]
[1718931911041,0.2698,133.34,133.33,45.0]
[1718931911438,0.2698,133.34,133.33,65.0]
[1718931911666,0.2698,133.34,133.33,65.17]
[1718931911843,0.2698,133.34,133.33,65.51]
[1718931912659,0.2698,133.34,133.33,71.579]
[1718931913447,15.2797,133.45,133.35,22.58]
[1718931913755,15.2797,133.45,133.36,65.51]
[1718931914460,6.4425,133.47,133.36,88.09]
[1718931915262,15.2797,133.49,133.36,88.09]
[1718931915868,15.2797,133.49,133.36,133.27]
[1718931917561,6.4425,133.51,133.36,133.27]
[1718931917562,0.8388819,133.52,133.38,67.76]
[1718931917757,0.8388819,133.52,133.4,22.58]
[1718931917940,0.8388819,133.52,133.42,22.58]
[1718931918150,0.8388819,133.52,133.43,43.09]
[1718931918358,0.8388819,133.52,133.44,65.17]
[1718931918968,0.8388819,133.52,133.45,0.17]
[1718931919357,0.8388819,133.52,133.44,65.17]
[1718931919559,0.8388819,133.52,133.45,0.34]
[1718931919761,0.8388819,133.52,133.46,0.17]
[1718931919957,0.8388819,133.52,133.46,6.239]
[1718931920164,0.8388819,133.52,133.47,20.0]
[1718931920668,28.36,133.51,133.36,6.069]
[1718931921259,28.36,133.48,133.36,6.069]
[1718931921469,0.17,133.47,133.36,28.649]
[1718931921643,28.36,133.48,133.36,28.649]
[1718931921847,28.36,133.48,133.38,22.58]
[1718931922149,28.36,133.48,133.37,20.0]
[1718931922376,0.17,133.47,133.36,6.069]
[1718931922550,0.51,133.47,133.36,28.649]
[1718931923666,0.51,133.47,133.37,0.17]
[1718931923975,0.51,133.47,133.37,20.17]
[1718931924474,0.51,133.47,133.32,6.069]
[1718931924771,0.34,133.47,133.33,22.58]
[1718931924973,0.34,133.47,133.33,67.76]
[1718931925275,48.3997,133.5,133.33,67.76]
[1718931925470,0.34,133.49,133.34,0.17]
[1718931925695,0.34,133.49,133.35,22.58]
[1718931925979,0.34,133.49,133.36,88.09]
[1718931926153,0.34,133.49,133.37,0.17]
[1718931926352,0.34,133.49,133.37,67.75]
[1718931926659,0.17,133.49,133.38,42.92]
[1718931926850,15.2797,133.5,133.39,67.75]
[1718931927053,15.2797,133.5,133.4,20.34]
[1718931927372,15.2797,133.5,133.41,45.0]
[1718931927558,15.2797,133.5,133.42,20.0]
[1718931928971,15.2797,133.5,133.4,20.0]
[1718931928972,45.51,133.49,133.4,20.0]
[1718931929362,0.17,133.49,133.37,22.58]
[1718931929551,15.2797,133.5,133.39,22.58]
[1718931930056,15.2797,133.5,133.4,20.0]
[1718931930260,0.51,133.49,133.4,20.0]
[1718931930458,0.51,133.49,133.37,20.0]
[1718931930775,0.51,133.49,133.38,45.51]
[1718931930974,0.51,133.49,133.39,20.0]
[1718931931176,0.51,133.49,133.4,45.0]
[1718931931354,0.51,133.49,133.41,20.0]
[1718931931554,15.2797,133.5,133.41,20.0]
[1718931932186,15.2797,133.5,133.42,45.51]
[1718931932363,15.2797,133.5,133.43,20.0]
[1718931932570,0.8388819,133.52,133.44,45.51]
[1718931932765,0.8388819,133.52,133.45,20.0]
[1718931933170,0.8388819,133.52,133.46,45.0]
[1718931933375,0.8388819,133.52,133.47,20.0]
[1718931938095,0.8388819,133.52,133.42,20.0]
[1718931938883,0.8388819,133.52,133.43,22.58]
[1718931939081,0.8388819,133.52,133.44,20.0]
[1718931939384,0.17,133.51,133.42,20.0]
[1718931940079,0.8388819,133.52,133.42,42.58]
[1718931940282,0.8388819,133.52,133.43,67.58]
[1718931940473,0.8388819,133.52,133.44,20.34]
[1718931940670,0.8388819,133.52,133.45,45.0]
[1718931940871,0.8388819,133.52,133.46,20.0]
[1718931941478,0.8388819,133.52,133.43,45.0]
[1718931941479,0.8388819,133.52,133.44,20.0]
[1718931941872,0.8388819,133.52,133.45,45.0]
[1718931942190,0.8388819,133.52,133.46,20.0]
[1718931942764,0.17,133.51,133.43,20.0]
[1718931942986,0.8388819,133.52,133.42,20.17]
[1718931943189,0.8388819,133.52,133.43,67.92]
[1718931943382,0.8388819,133.52,133.44,20.17]
[1718931943580,0.8388819,133.52,133.45,45.0]
[1718931943888,0.8388819,133.52,133.46,20.0]
[1718931949179,0.8388819,133.52,133.47,45.0]
[1718931949381,0.8388819,133.52,133.48,20.0]
[1718931949581,30.0,133.49,133.48,20.0]
[1718931949774,30.0,133.49,133.48,65.34]
[1718931950192,0.8388819,133.52,133.48,65.34]
[1718931950494,0.8388819,133.52,133.49,45.17]
[1718931950797,0.8388819,133.52,133.5,20.0]
[1718931952012,0.8388819,133.52,133.5,42.58]
[1718931952170,0.8388819,133.52,133.5,20.0]
[1718931953199,0.8388819,133.52,133.51,28.819]
[1718931953399,21.7222,133.68,133.51,28.819]
[1718931953400,3.85240961,133.64,133.51,94.159]
[1718931953609,3.85240961,133.65,133.53,22.58]
[1718931953912,3.85240961,133.65,133.55,22.58]
[1718931954085,0.8388819,133.66,133.56,88.09]
[1718931955192,0.8388819,133.66,133.56,133.27]
[1718931955390,0.8388819,133.66,133.56,88.09]
[1718931955584,0.8388819,133.66,133.56,133.27]
[1718931956197,0.8388819,133.66,133.58,67.76]
[1718931956397,0.8388819,133.66,133.6,22.58]
[1718931956601,0.8388819,133.66,133.62,22.58]
[1718931956801,0.8388819,133.66,133.63,65.51]
[1718931957003,0.8388819,133.66,133.63,88.09]
[1718931957924,0.8388819,133.66,133.63,65.0]
[1718931958108,0.8388819,133.66,133.63,20.0]
[1718931958419,0.8388819,133.66,133.58,20.0]
[1718931958708,0.8388819,133.66,133.58,42.58]
[1718931958922,0.8388819,133.66,133.58,87.76]
[1718931959416,0.8388819,133.66,133.59,0.17]
[1718931959595,0.8388819,133.66,133.6,22.58]
[1718931959796,0.8388819,133.66,133.61,88.09]
[1718931960010,0.8388819,133.66,133.62,0.17]
[1718931960197,0.8388819,133.66,133.62,0.34]
[1718931960420,0.8388819,133.66,133.63,0.17]
[1718931960717,0.8388819,133.66,133.62,0.34]
[1718931961020,0.8388819,133.66,133.63,0.17]
[1718931961394,0.8388819,133.66,133.62,0.34]
[1718931961598,0.8388819,133.66,133.63,0.17]
[1718931963214,0.8388819,133.66,133.65,22.58]
[1718931963414,0.8388819,133.66,133.65,87.92]
[1718931963620,15.2797,133.77,133.65,149.5125]
[1718931963814,15.2797,133.77,133.67,22.58]
[1718931964115,15.2797,133.77,133.68,0.51]
[1718931964306,15.2797,133.77,133.68,65.51]
[1718931964505,15.2797,133.77,133.68,20.0]
[1718931965111,15.2797,133.77,133.65,20.0]
[1718931965317,15.2797,133.77,133.66,45.51]
[1718931965498,15.2797,133.77,133.67,42.58]
[1718931965698,15.2797,133.77,133.67,20.0]
[1718931966311,15.2797,133.77,133.66,0.34]
[1718931966505,15.2797,133.77,133.66,67.92]
[1718931966701,0.17,133.76,133.67,20.0]
[1718931967001,45.51,133.76,133.67,20.0]
[1718931967397,45.51,133.76,133.62,20.0]
[1718931967615,0.51,133.76,133.63,22.58]
[1718931967996,45.51,133.76,133.64,20.0]
[1718931968200,45.51,133.76,133.65,67.92]
[1718931968399,0.51,133.76,133.66,20.0]
[1718931968620,0.51,133.76,133.67,45.0]
[1718931968902,0.17,133.76,133.68,20.0]
[1718931969696,15.2797,133.77,133.68,20.0]
[1718931969917,15.2797,133.77,133.69,0.17]